[Event "Titled Tuesday Blitz August 1 Early 2023"]
[White "Han, Yichen"]
[Black "Eynullayev, Altay"]
[WhiteFideId "1054430"]
[BlackFideId "13413562"]
[WhiteElo "2373"]
[BlackElo "2536"]
[Result "1-0"]
[Round "4"]
[TimeControl "180+1"]
[Date "2023.08.01"]
[WhiteClock "0:00:11"]
[BlackClock "0:00:04"]
[Board "161"]

1. Nf3 {[%clk 0:03:00]}  Nf6 {[%clk 0:02:59]} 2. g3 {[%clk 0:03:00]}  e6 {[%clk 0:02:58]} 3. Bg2 {[%clk 0:03:00]}  d5 {[%clk 0:02:57]} 4. O-O {[%clk 0:03:00]}  Be7 {[%clk 0:02:57]} 5. d3 {[%clk 0:03:00]}  O-O {[%clk 0:02:57]} 6. Nbd2 {[%clk 0:03:00]}  c5 {[%clk 0:02:58]} 7. e4 {[%clk 0:03:00]}  Nc6 {[%clk 0:02:58]} 8. Re1 {[%clk 0:02:59]}  b5 {[%clk 0:02:57]} 9. e5 {[%clk 0:02:55]}  Nd7 {[%clk 0:02:58]} 10. Nf1 {[%clk 0:02:55]}  a5 {[%clk 0:02:57]} 11. h4 {[%clk 0:02:54]}  b4 {[%clk 0:02:56]} 12. c3 {[%clk 0:02:55]}  a4 {[%clk 0:02:52]} 13. a3 {[%clk 0:02:53]}  bxc3 {[%clk 0:02:42]} 14. bxc3 {[%clk 0:02:54]}  Ba6 {[%clk 0:02:43]} 15. h5 {[%clk 0:02:52]}  h6 {[%clk 0:02:42]} 16. N1h2 {[%clk 0:02:50]}  Re8 {[%clk 0:02:43]} 17. Bf4 {[%clk 0:02:46]}  Na5 {[%clk 0:02:37]} 18. Rb1 {[%clk 0:02:36]}  Nb3 {[%clk 0:02:36]} 19. Ng4 {[%clk 0:02:32]}  Bf8 {[%clk 0:02:35]} 20. Qe2 {[%clk 0:02:24]}  Rb8 {[%clk 0:02:25]} 21. Qe3 {[%clk 0:02:24]}  d4 {[%clk 0:02:13]} 22. cxd4 {[%clk 0:02:22]}  cxd4 {[%clk 0:02:13]} 23. Nxd4 {[%clk 0:01:43]}  Bc5 {[%clk 0:02:12]} 24. Rxb3 {[%clk 0:01:33]}  Rxb3 {[%clk 0:02:06]} 25. Be4 {[%clk 0:01:05]}  Nf8 {[%clk 0:01:21]} 26. Bxh6 {[%clk 0:00:30]}  Bxd4 {[%clk 0:01:05]} 27. Qf4 {[%clk 0:00:28]}  Bxe5 {[%clk 0:00:13]} 28. Nxe5 {[%clk 0:00:20]}  f6 {[%clk 0:00:13]} 29. Bxg7 {[%clk 0:00:11]}  Kxg7 {[%clk 0:00:04]} 30. Qg4+ {[%clk 0:00:11]} 1-0


[Site "https://www.chess.com"]

[Event "Titled Tuesday Blitz August 1 Early 2023"]
[White "Andreev, Konstantin"]
[Black "Rodriguez Santiago, Jaime"]
[WhiteFideId "24239305"]
[BlackFideId "3100898"]
[WhiteElo "2536"]
[BlackElo "2371"]
[Result "1-0"]
[Round "4"]
[TimeControl "180+1"]
[Date "2023.08.01"]
[WhiteClock "0:00:27"]
[BlackClock "0:00:00"]
[Board "162"]

1. e4 {[%clk 0:03:00]}  c6 {[%clk 0:02:59]} 2. d4 {[%clk 0:03:00]}  d5 {[%clk 0:02:59]} 3. e5 {[%clk 0:03:01]}  Bf5 {[%clk 0:02:58]} 4. Nf3 {[%clk 0:03:02]}  e6 {[%clk 0:02:57]} 5. Be2 {[%clk 0:03:02]}  h6 {[%clk 0:02:56]} 6. O-O {[%clk 0:03:02]}  Ne7 {[%clk 0:02:56]} 7. Nbd2 {[%clk 0:03:02]}  Nd7 {[%clk 0:02:55]} 8. a4 {[%clk 0:03:03]}  g5 {[%clk 0:02:55]} 9. Nb3 {[%clk 0:03:02]}  Qc7 {[%clk 0:02:55]} 10. a5 {[%clk 0:03:02]}  Bg4 {[%clk 0:02:41]} 11. Bd2 {[%clk 0:02:59]}  Nf5 {[%clk 0:02:38]} 12. h3 {[%clk 0:02:56]}  Bxf3 {[%clk 0:02:38]} 13. Bxf3 {[%clk 0:02:57]}  c5 {[%clk 0:02:35]} 14. c3 {[%clk 0:02:52]}  c4 {[%clk 0:02:21]} 15. Nc1 {[%clk 0:02:45]}  a6 {[%clk 0:02:20]} 16. Bh5 {[%clk 0:02:34]}  Nb8 {[%clk 0:02:14]} 17. Ne2 {[%clk 0:02:31]}  Nc6 {[%clk 0:02:11]} 18. f4 {[%clk 0:02:30]}  Ng7 {[%clk 0:01:39]} 19. Bf3 {[%clk 0:02:25]}  gxf4 {[%clk 0:01:34]} 20. Nxf4 {[%clk 0:02:22]}  Nxa5 {[%clk 0:01:30]} 21. Bxd5 {[%clk 0:02:15]}  Nb3 {[%clk 0:01:20]} 22. Ra4 {[%clk 0:01:57]}  Nxd2 {[%clk 0:00:51]} 23. Qxd2 {[%clk 0:01:53]}  exd5 {[%clk 0:00:51]} 24. Nxd5 {[%clk 0:01:52]}  Qc6 {[%clk 0:00:51]} 25. Nf6+ {[%clk 0:01:48]}  Kd8 {[%clk 0:00:48]} 26. Ra5 {[%clk 0:01:45]}  b5 {[%clk 0:00:42]} 27. Kh1 {[%clk 0:01:42]}  Ra7 {[%clk 0:00:25]} 28. d5 {[%clk 0:01:39]}  Qb6 {[%clk 0:00:23]} 29. Raa1 {[%clk 0:01:31]}  Bc5 {[%clk 0:00:23]} 30. d6 {[%clk 0:01:29]}  Ne8 {[%clk 0:00:21]} 31. Nd5 {[%clk 0:01:27]}  Qc6 {[%clk 0:00:18]} 32. Rf5 {[%clk 0:01:23]}  Rg8 {[%clk 0:00:18]} 33. Raf1 {[%clk 0:01:20]}  Rg7 {[%clk 0:00:16]} 34. Nf4 {[%clk 0:01:05]}  Rg3 {[%clk 0:00:12]} 35. Kh2 {[%clk 0:01:00]}  Rg7 {[%clk 0:00:09]} 36. Nh5 {[%clk 0:00:59]}  Rg6 {[%clk 0:00:07]} 37. Rxf7 {[%clk 0:00:55]}  Rxf7 {[%clk 0:00:07]} 38. Rxf7 {[%clk 0:00:56]}  Be3 {[%clk 0:00:07]} 39. Qe2 {[%clk 0:00:50]}  Qe4 {[%clk 0:00:07]} 40. Ng3 {[%clk 0:00:42]}  Rxg3 {[%clk 0:00:05]} 41. Kxg3 {[%clk 0:00:41]}  Bf4+ {[%clk 0:00:05]} 42. Kf2 {[%clk 0:00:41]}  Qxe2+ {[%clk 0:00:03]} 43. Kxe2 {[%clk 0:00:40]}  Bxe5 {[%clk 0:00:04]} 44. Ra7 {[%clk 0:00:36]}  Nxd6 {[%clk 0:00:03]} 45. Rxa6 {[%clk 0:00:36]}  Kd7 {[%clk 0:00:04]} 46. Ke3 {[%clk 0:00:36]}  Ke6 {[%clk 0:00:03]} 47. g4 {[%clk 0:00:35]}  Kd5 {[%clk 0:00:03]} 48. h4 {[%clk 0:00:34]}  Bf6 {[%clk 0:00:00]} 49. g5 {[%clk 0:00:27]} 1-0


[Site "https://www.chess.com"]

[Event "Titled Tuesday Blitz August 1 Early 2023"]
[White "Streltsov, Alexey"]
[Black "Llanos, Guillermo"]
[WhiteFideId "24104434"]
[BlackFideId "100358"]
[WhiteElo "2527"]
[BlackElo "2371"]
[Result "0-1"]
[Round "4"]
[TimeControl "180+1"]
[Date "2023.08.01"]
[WhiteClock "0:00:07"]
[BlackClock "0:00:21"]
[Board "163"]

1. d4 {[%clk 0:03:00]}  Nf6 {[%clk 0:02:52]} 2. Bf4 {[%clk 0:03:01]}  b6 {[%clk 0:02:50]} 3. Nc3 {[%clk 0:02:55]}  Bb7 {[%clk 0:02:48]} 4. f3 {[%clk 0:02:55]}  d5 {[%clk 0:02:47]} 5. e3 {[%clk 0:02:55]}  e6 {[%clk 0:02:45]} 6. Nb5 {[%clk 0:02:51]}  Na6 {[%clk 0:02:44]} 7. a4 {[%clk 0:02:45]}  c6 {[%clk 0:02:42]} 8. Na3 {[%clk 0:02:43]}  Bd6 {[%clk 0:02:38]} 9. Nh3 {[%clk 0:02:43]}  O-O {[%clk 0:02:35]} 10. c3 {[%clk 0:02:43]}  h6 {[%clk 0:02:24]} 11. Bd3 {[%clk 0:02:21]}  Nh5 {[%clk 0:02:15]} 12. Qe2 {[%clk 0:02:03]}  Nxf4 {[%clk 0:02:13]} 13. exf4 {[%clk 0:02:02]}  Nc7 {[%clk 0:02:08]} 14. g3 {[%clk 0:02:01]}  Qd7 {[%clk 0:02:01]} 15. Nf2 {[%clk 0:02:01]}  a6 {[%clk 0:01:53]} 16. b4 {[%clk 0:01:57]}  Rfe8 {[%clk 0:01:48]} 17. O-O {[%clk 0:01:55]}  Qe7 {[%clk 0:01:47]} 18. Nc2 {[%clk 0:01:53]}  a5 {[%clk 0:01:44]} 19. Rfb1 {[%clk 0:01:36]}  Bc8 {[%clk 0:01:33]} 20. Kg2 {[%clk 0:01:36]}  Bd7 {[%clk 0:01:32]} 21. h4 {[%clk 0:01:35]}  Ra7 {[%clk 0:01:26]} 22. Ng4 {[%clk 0:01:34]}  Rea8 {[%clk 0:01:22]} 23. f5 {[%clk 0:01:22]}  exf5 {[%clk 0:01:14]} 24. Qxe7 {[%clk 0:01:22]}  Bxe7 {[%clk 0:01:14]} 25. Ne5 {[%clk 0:01:23]}  Be8 {[%clk 0:01:08]} 26. bxa5 {[%clk 0:01:21]}  bxa5 {[%clk 0:01:01]} 27. Bxf5 {[%clk 0:01:20]}  c5 {[%clk 0:00:57]} 28. Ne3 {[%clk 0:01:09]}  g6 {[%clk 0:00:55]} 29. Bd7 {[%clk 0:00:53]}  cxd4 {[%clk 0:00:49]} 30. cxd4 {[%clk 0:00:52]}  Bxd7 {[%clk 0:00:46]} 31. Nxd7 {[%clk 0:00:53]}  Bb4 {[%clk 0:00:41]} 32. Rc1 {[%clk 0:00:46]}  Rd8 {[%clk 0:00:40]} 33. Nf6+ {[%clk 0:00:28]}  Kg7 {[%clk 0:00:39]} 34. Rxc7 {[%clk 0:00:28]}  Rxc7 {[%clk 0:00:37]} 35. Nfxd5 {[%clk 0:00:29]}  Rcd7 {[%clk 0:00:35]} 36. Nxb4 {[%clk 0:00:29]}  axb4 {[%clk 0:00:35]} 37. d5 {[%clk 0:00:30]}  Ra8 {[%clk 0:00:33]} 38. a5 {[%clk 0:00:29]}  b3 {[%clk 0:00:30]} 39. Rb1 {[%clk 0:00:28]}  Rb7 {[%clk 0:00:29]} 40. Nc4 {[%clk 0:00:27]}  Rb4 {[%clk 0:00:25]} 41. Nd2 {[%clk 0:00:15]}  b2 {[%clk 0:00:25]} 42. Kf2 {[%clk 0:00:12]}  Rxa5 {[%clk 0:00:24]} 43. d6 {[%clk 0:00:13]}  Rd5 {[%clk 0:00:24]} 44. Ke3 {[%clk 0:00:14]}  Rxd6 {[%clk 0:00:23]} 45. Ne4 {[%clk 0:00:15]}  Ra6 {[%clk 0:00:22]} 46. Kd3 {[%clk 0:00:15]}  Ra1 {[%clk 0:00:22]} 47. Nc3 {[%clk 0:00:07]}  Rb3 {[%clk 0:00:21]} 0-1


[Site "https://www.chess.com"]

[Event "Titled Tuesday Blitz August 1 Early 2023"]
[White "Rodchenkov, Sergey D."]
[Black "Li, Hui"]
[WhiteFideId "4168712"]
[BlackFideId "15400310"]
[WhiteElo "2514"]
[BlackElo "2370"]
[Result "1-0"]
[Round "4"]
[TimeControl "180+1"]
[Date "2023.08.01"]
[WhiteClock "0:00:21"]
[BlackClock "0:00:00"]
[Board "165"]

1. e4 {[%clk 0:03:00]}  e5 {[%clk 0:02:57]} 2. Nf3 {[%clk 0:03:00]}  Nf6 {[%clk 0:02:57]} 3. d4 {[%clk 0:03:00]}  exd4 {[%clk 0:02:57]} 4. e5 {[%clk 0:02:27]}  Ne4 {[%clk 0:02:57]} 5. Qxd4 {[%clk 0:02:14]}  d5 {[%clk 0:02:57]} 6. exd6 {[%clk 0:02:14]}  Nxd6 {[%clk 0:02:58]} 7. Nc3 {[%clk 0:02:03]}  Nc6 {[%clk 0:02:57]} 8. Qf4 {[%clk 0:01:41]}  Be6 {[%clk 0:02:57]} 9. Be3 {[%clk 0:01:29]}  Nf5 {[%clk 0:02:55]} 10. Rd1 {[%clk 0:01:14]}  Bd6 {[%clk 0:02:54]} 11. Qe4 {[%clk 0:01:14]}  Nxe3 {[%clk 0:02:47]} 12. Qxe3 {[%clk 0:01:09]}  Qe7 {[%clk 0:02:45]} 13. Bb5 {[%clk 0:01:07]}  O-O {[%clk 0:02:37]} 14. O-O {[%clk 0:01:07]}  Rfe8 {[%clk 0:02:32]} 15. Rfe1 {[%clk 0:01:03]}  Qf6 {[%clk 0:02:10]} 16. b3 {[%clk 0:00:39]}  h6 {[%clk 0:02:08]} 17. Ne4 {[%clk 0:00:36]}  Qe7 {[%clk 0:01:47]} 18. Nxd6 {[%clk 0:00:33]}  cxd6 {[%clk 0:01:48]} 19. Qf4 {[%clk 0:00:33]}  Rad8 {[%clk 0:01:40]} 20. Nd4 {[%clk 0:00:29]}  Qc7 {[%clk 0:01:23]} 21. Bxc6 {[%clk 0:00:23]}  bxc6 {[%clk 0:01:24]} 22. c4 {[%clk 0:00:24]}  Qa5 {[%clk 0:01:04]} 23. Nxc6 {[%clk 0:00:21]}  Qxa2 {[%clk 0:00:58]} 24. Nxd8 {[%clk 0:00:21]}  Rxd8 {[%clk 0:00:59]} 25. Qg3 {[%clk 0:00:21]}  Qa3 {[%clk 0:00:51]} 26. h3 {[%clk 0:00:20]}  a5 {[%clk 0:00:47]} 27. Re3 {[%clk 0:00:21]}  a4 {[%clk 0:00:38]} 28. bxa4 {[%clk 0:00:21]}  Qxa4 {[%clk 0:00:39]} 29. Rxd6 {[%clk 0:00:21]}  Rxd6 {[%clk 0:00:37]} 30. Qxd6 {[%clk 0:00:20]}  Qxc4 {[%clk 0:00:36]} 31. Qd8+ {[%clk 0:00:18]}  Kh7 {[%clk 0:00:36]} 32. Qd3+ {[%clk 0:00:19]}  Qxd3 {[%clk 0:00:35]} 33. Rxd3 {[%clk 0:00:20]}  g5 {[%clk 0:00:33]} 34. g4 {[%clk 0:00:19]}  Kg6 {[%clk 0:00:30]} 35. Rd6 {[%clk 0:00:18]}  Kf6 {[%clk 0:00:29]} 36. f3 {[%clk 0:00:18]}  Ke7 {[%clk 0:00:26]} 37. Ra6 {[%clk 0:00:18]}  Kf8 {[%clk 0:00:17]} 38. Kf2 {[%clk 0:00:18]}  Kg7 {[%clk 0:00:17]} 39. Ra7 {[%clk 0:00:18]}  h5 {[%clk 0:00:11]} 40. Kg3 {[%clk 0:00:19]}  hxg4 {[%clk 0:00:11]} 41. fxg4 {[%clk 0:00:19]}  Bd5 {[%clk 0:00:10]} 42. Ra5 {[%clk 0:00:18]}  Be6 {[%clk 0:00:08]} 43. Rxg5+ {[%clk 0:00:19]}  Kh6 {[%clk 0:00:08]} 44. Ra5 {[%clk 0:00:20]}  Kg6 {[%clk 0:00:08]} 45. h4 {[%clk 0:00:21]}  Kh6 {[%clk 0:00:08]} 46. h5 {[%clk 0:00:21]}  Bb3 {[%clk 0:00:07]} 47. Kh4 {[%clk 0:00:21]}  Bc2 {[%clk 0:00:06]} 48. Ra6+ {[%clk 0:00:21]}  Kg7 {[%clk 0:00:06]} 49. g5 {[%clk 0:00:22]}  Bd3 {[%clk 0:00:06]} 50. Rf6 {[%clk 0:00:23]}  Bc2 {[%clk 0:00:05]} 51. Kg3 {[%clk 0:00:23]}  Bd1 {[%clk 0:00:05]} 52. h6+ {[%clk 0:00:24]}  Kg8 {[%clk 0:00:05]} 53. Kf4 {[%clk 0:00:24]}  Bc2 {[%clk 0:00:05]} 54. Ke5 {[%clk 0:00:24]}  Bg6 {[%clk 0:00:05]} 55. Kd6 {[%clk 0:00:25]}  Kf8 {[%clk 0:00:05]} 56. Rf2 {[%clk 0:00:21]}  Bh7 {[%clk 0:00:04]} 57. Rb2 {[%clk 0:00:19]}  f6 {[%clk 0:00:02]} 58. gxf6 {[%clk 0:00:18]}  Bf5 {[%clk 0:00:02]} 59. Ke5 {[%clk 0:00:17]}  Bg6 {[%clk 0:00:02]} 60. h7 {[%clk 0:00:17]}  Bxh7 {[%clk 0:00:01]} 61. Rb8+ {[%clk 0:00:18]}  Kf7 {[%clk 0:00:01]} 62. Rb7+ {[%clk 0:00:19]}  Kg8 {[%clk 0:00:02]} 63. Rg7+ {[%clk 0:00:19]}  Kh8 {[%clk 0:00:01]} 64. Rg3 {[%clk 0:00:20]}  Bg8 {[%clk 0:00:02]} 65. Kd6 {[%clk 0:00:20]}  Bb3 {[%clk 0:00:00]} 66. Ke7 {[%clk 0:00:21]} 1-0


[Site "https://www.chess.com"]

[Event "Titled Tuesday Blitz August 1 Early 2023"]
[White "Lopez Gracia, Fernando"]
[Black "Khamdamova, Afruza"]
[WhiteFideId "2207184"]
[BlackFideId "14210444"]
[WhiteElo "2366"]
[BlackElo "2510"]
[Result "1-0"]
[Round "4"]
[TimeControl "180+1"]
[Date "2023.08.01"]
[WhiteClock "0:00:35"]
[BlackClock "0:00:00"]
[Board "166"]

1. e4 {[%clk 0:03:00]}  e5 {[%clk 0:02:59]} 2. Nf3 {[%clk 0:03:00]}  Nc6 {[%clk 0:02:59]} 3. d4 {[%clk 0:03:01]}  exd4 {[%clk 0:02:59]} 4. Nxd4 {[%clk 0:03:02]}  Nf6 {[%clk 0:02:59]} 5. Nc3 {[%clk 0:03:02]}  Bb4 {[%clk 0:02:59]} 6. Nxc6 {[%clk 0:03:01]}  bxc6 {[%clk 0:02:58]} 7. Bd3 {[%clk 0:03:01]}  O-O {[%clk 0:02:58]} 8. O-O {[%clk 0:03:00]}  d5 {[%clk 0:02:59]} 9. exd5 {[%clk 0:03:01]}  cxd5 {[%clk 0:02:59]} 10. Bg5 {[%clk 0:03:01]}  c6 {[%clk 0:02:58]} 11. Na4 {[%clk 0:02:58]}  Bd6 {[%clk 0:02:58]} 12. h3 {[%clk 0:02:51]}  Rb8 {[%clk 0:02:57]} 13. c3 {[%clk 0:02:49]}  h6 {[%clk 0:02:54]} 14. Bh4 {[%clk 0:02:48]}  Be6 {[%clk 0:02:50]} 15. Bc2 {[%clk 0:02:44]}  Re8 {[%clk 0:02:36]} 16. Qd4 {[%clk 0:02:42]}  Rb7 {[%clk 0:02:18]} 17. Rfe1 {[%clk 0:02:39]}  Be7 {[%clk 0:01:53]} 18. Rad1 {[%clk 0:02:28]}  Nd7 {[%clk 0:01:39]} 19. Bxe7 {[%clk 0:02:15]}  Qxe7 {[%clk 0:01:39]} 20. f4 {[%clk 0:02:16]}  Qf6 {[%clk 0:01:36]} 21. f5 {[%clk 0:02:01]}  Qxd4+ {[%clk 0:00:53]} 22. cxd4 {[%clk 0:01:58]}  Nf6 {[%clk 0:00:40]} 23. fxe6 {[%clk 0:01:55]}  fxe6 {[%clk 0:00:40]} 24. a3 {[%clk 0:01:50]}  Kf7 {[%clk 0:00:33]} 25. b4 {[%clk 0:01:47]}  Rbe7 {[%clk 0:00:32]} 26. Nc5 {[%clk 0:01:46]}  e5 {[%clk 0:00:29]} 27. dxe5 {[%clk 0:01:40]}  Rxe5 {[%clk 0:00:28]} 28. Rxe5 {[%clk 0:01:39]}  Rxe5 {[%clk 0:00:28]} 29. Kf2 {[%clk 0:01:36]}  Re7 {[%clk 0:00:15]} 30. Re1 {[%clk 0:01:34]}  Rc7 {[%clk 0:00:14]} 31. Ne6 {[%clk 0:01:28]}  Rd7 {[%clk 0:00:12]} 32. Bf5 {[%clk 0:01:20]}  Rd6 {[%clk 0:00:13]} 33. Nd4 {[%clk 0:01:13]}  g6 {[%clk 0:00:13]} 34. Re6 {[%clk 0:01:08]}  Rd8 {[%clk 0:00:06]} 35. Bd3 {[%clk 0:01:06]}  Rc8 {[%clk 0:00:03]} 36. Rxc6 {[%clk 0:01:05]}  Re8 {[%clk 0:00:03]} 37. Rc7+ {[%clk 0:01:05]}  Kg8 {[%clk 0:00:03]} 38. Bxg6 {[%clk 0:01:04]}  Ne4+ {[%clk 0:00:02]} 39. Kg1 {[%clk 0:01:00]}  Rf8 {[%clk 0:00:03]} 40. Nf5 {[%clk 0:00:58]}  Rf6 {[%clk 0:00:02]} 41. Nxh6+ {[%clk 0:00:54]}  Kf8 {[%clk 0:00:02]} 42. Rf7+ {[%clk 0:00:46]}  Rxf7 {[%clk 0:00:03]} 43. Bxf7 {[%clk 0:00:47]}  d4 {[%clk 0:00:02]} 44. Bb3 {[%clk 0:00:38]}  d3 {[%clk 0:00:02]} 45. Ng4 {[%clk 0:00:36]}  d2 {[%clk 0:00:03]} 46. Ne3 {[%clk 0:00:35]}  Nc3 {[%clk 0:00:03]} 47. Nd1 {[%clk 0:00:34]}  Ne4 {[%clk 0:00:02]} 48. Kf1 {[%clk 0:00:34]}  Ke7 {[%clk 0:00:02]} 49. Ke2 {[%clk 0:00:34]}  Kd6 {[%clk 0:00:00]} 50. Bc2 {[%clk 0:00:35]} 1-0


[Site "https://www.chess.com"]

[Event "Titled Tuesday Blitz August 1 Early 2023"]
[White "Lopez Del Alamo, Antonio"]
[Black "Lehtosaari, Mauri"]
[WhiteFideId "2227339"]
[BlackFideId "501999"]
[WhiteElo "2359"]
[BlackElo "2503"]
[Result "1-0"]
[Round "4"]
[TimeControl "180+1"]
[Date "2023.08.01"]
[WhiteClock "0:01:48"]
[BlackClock "0:00:06"]
[Board "168"]

1. e4 {[%clk 0:02:58]}  c5 {[%clk 0:02:55]} 2. Nf3 {[%clk 0:02:58]}  e6 {[%clk 0:02:55]} 3. d3 {[%clk 0:02:57]}  d5 {[%clk 0:02:52]} 4. Nbd2 {[%clk 0:02:57]}  Nf6 {[%clk 0:02:51]} 5. g3 {[%clk 0:02:57]}  Nc6 {[%clk 0:02:50]} 6. Bg2 {[%clk 0:02:57]}  Be7 {[%clk 0:02:51]} 7. O-O {[%clk 0:02:58]}  O-O {[%clk 0:02:51]} 8. e5 {[%clk 0:02:58]}  Nd7 {[%clk 0:02:51]} 9. Re1 {[%clk 0:02:59]}  b5 {[%clk 0:02:51]} 10. Nf1 {[%clk 0:02:59]}  a5 {[%clk 0:02:50]} 11. h4 {[%clk 0:02:58]}  a4 {[%clk 0:02:50]} 12. a3 {[%clk 0:02:56]}  Ba6 {[%clk 0:02:47]} 13. N1h2 {[%clk 0:02:56]}  Qb6 {[%clk 0:02:29]} 14. Bf4 {[%clk 0:02:54]}  b4 {[%clk 0:02:29]} 15. Bf1 {[%clk 0:02:44]}  bxa3 {[%clk 0:02:21]} 16. bxa3 {[%clk 0:02:45]}  Rfb8 {[%clk 0:02:14]} 17. Ng5 {[%clk 0:02:41]}  h6 {[%clk 0:01:58]} 18. Qh5 {[%clk 0:02:33]}  hxg5 {[%clk 0:01:47]} 19. hxg5 {[%clk 0:02:34]}  Nf8 {[%clk 0:01:27]} 20. c3 {[%clk 0:02:28]}  Ng6 {[%clk 0:01:25]} 21. Ng4 {[%clk 0:02:27]}  Bf8 {[%clk 0:01:07]} 22. Be2 {[%clk 0:02:23]}  Qb2 {[%clk 0:00:59]} 23. Kg2 {[%clk 0:02:16]}  Be7 {[%clk 0:00:29]} 24. Nf6+ {[%clk 0:02:14]}  Kf8 {[%clk 0:00:26]} 25. Qh7 {[%clk 0:02:11]}  Bxf6 {[%clk 0:00:26]} 26. gxf6 {[%clk 0:02:12]}  gxf6 {[%clk 0:00:24]} 27. exf6 {[%clk 0:02:13]}  Ke8 {[%clk 0:00:24]} 28. Qg8+ {[%clk 0:02:05]}  Nf8 {[%clk 0:00:23]} 29. Bh6 {[%clk 0:02:05]}  Qxc3 {[%clk 0:00:15]} 30. Qxf8+ {[%clk 0:01:58]}  Kd7 {[%clk 0:00:15]} 31. Qxf7+ {[%clk 0:01:58]}  Kc8 {[%clk 0:00:15]} 32. Bg4 {[%clk 0:01:57]}  Nd8 {[%clk 0:00:13]} 33. Bxe6+ {[%clk 0:01:53]}  Nxe6 {[%clk 0:00:11]} 34. Rxe6 {[%clk 0:01:54]}  Bb5 {[%clk 0:00:08]} 35. Rae1 {[%clk 0:01:49]}  Rb7 {[%clk 0:00:05]} 36. Re8+ {[%clk 0:01:48]}  Bxe8 {[%clk 0:00:06]} 37. Rxe8# {[%clk 0:01:48]} 1-0


[Site "https://www.chess.com"]

[Event "Titled Tuesday Blitz August 1 Early 2023"]
[White "Elissalt Cardenas, Hector"]
[Black "Liu, Casper"]
[WhiteFideId "3500632"]
[BlackFideId "1454153"]
[WhiteElo "2351"]
[BlackElo "2497"]
[Result "0-1"]
[Round "4"]
[TimeControl "180+1"]
[Date "2023.08.01"]
[WhiteClock "0:00:00"]
[BlackClock "0:00:46"]
[Board "171"]

1. d4 {[%clk 0:03:00]}  Nf6 {[%clk 0:02:59]} 2. c4 {[%clk 0:03:00]}  g6 {[%clk 0:02:59]} 3. Nc3 {[%clk 0:03:00]}  Bg7 {[%clk 0:03:00]} 4. e4 {[%clk 0:03:00]}  O-O {[%clk 0:03:00]} 5. Be2 {[%clk 0:03:00]}  d6 {[%clk 0:03:01]} 6. Be3 {[%clk 0:03:00]}  e5 {[%clk 0:03:02]} 7. d5 {[%clk 0:03:00]}  a5 {[%clk 0:03:01]} 8. g4 {[%clk 0:02:57]}  Na6 {[%clk 0:03:01]} 9. h4 {[%clk 0:02:56]}  Nc5 {[%clk 0:02:57]} 10. f3 {[%clk 0:02:56]}  h5 {[%clk 0:02:56]} 11. g5 {[%clk 0:02:53]}  Nfd7 {[%clk 0:02:56]} 12. Nh3 {[%clk 0:02:53]}  a4 {[%clk 0:02:54]} 13. Nf2 {[%clk 0:02:51]}  f5 {[%clk 0:02:50]} 14. gxf6 {[%clk 0:02:50]}  Qxf6 {[%clk 0:02:51]} 15. Qd2 {[%clk 0:02:43]}  Ra6 {[%clk 0:02:40]} 16. O-O-O {[%clk 0:02:42]}  Nb6 {[%clk 0:02:36]} 17. Rdg1 {[%clk 0:02:22]}  Bd7 {[%clk 0:02:36]} 18. Rg2 {[%clk 0:02:12]}  Rfa8 {[%clk 0:02:22]} 19. Kb1 {[%clk 0:01:54]}  Nb3 {[%clk 0:02:19]} 20. Qd1 {[%clk 0:01:36]}  Be8 {[%clk 0:02:11]} 21. c5 {[%clk 0:01:23]}  Nxc5 {[%clk 0:02:02]} 22. Bxc5 {[%clk 0:01:22]}  dxc5 {[%clk 0:02:02]} 23. Bxa6 {[%clk 0:01:22]}  Rxa6 {[%clk 0:02:00]} 24. Nd3 {[%clk 0:01:20]}  Nc4 {[%clk 0:02:00]} 25. Qc1 {[%clk 0:01:13]}  Qxf3 {[%clk 0:01:59]} 26. Ne1 {[%clk 0:01:08]}  Qf6 {[%clk 0:01:42]} 27. d6 {[%clk 0:01:05]}  Qxd6 {[%clk 0:01:39]} 28. Rf1 {[%clk 0:01:00]}  c6 {[%clk 0:01:35]} 29. Nf3 {[%clk 0:00:57]}  Qd3+ {[%clk 0:01:18]} 30. Ka1 {[%clk 0:00:50]}  a3 {[%clk 0:01:18]} 31. b3 {[%clk 0:00:46]}  Ne3 {[%clk 0:01:19]} 32. Rgf2 {[%clk 0:00:28]}  Nxf1 {[%clk 0:01:18]} 33. Rxf1 {[%clk 0:00:28]}  Ra8 {[%clk 0:01:05]} 34. Ng5 {[%clk 0:00:28]}  Rd8 {[%clk 0:01:00]} 35. Ne6 {[%clk 0:00:19]}  Bh6 {[%clk 0:01:00]} 36. Nxc5 {[%clk 0:00:15]}  Qd4 {[%clk 0:00:49]} 37. Ne6 {[%clk 0:00:00]}  Bxc1 {[%clk 0:00:46]} 0-1


[Site "https://www.chess.com"]